[Event "Titled Tuesday Blitz January 10 Early 2023"]
[White "Wahedi, Ahmad Siar"]
[Black "Melnichuk, Mikhail"]
[WhiteFideId "4651260"]
[BlackFideId "14117533"]
[WhiteElo "2274"]
[BlackElo "2327"]
[Result "1-0"]
[Round "04"]
[TimeControl "180+2"]
[Date "2023.01.10"]
[WhiteClock "0:00:11"]
[BlackClock "0:00:02"]

1. e4 {[%clk 0:03:00]}  e5 {[%clk 0:02:59]} 2. Nf3 {[%clk 0:03:00]}  Nf6 {[%clk 0:02:58]} 3. Bb5 {[%clk 0:03:00]}  Nxe4 {[%clk 0:02:56]} 4. O-O {[%clk 0:02:59]}  Nd6 {[%clk 0:02:48]} 5. Ba4 {[%clk 0:02:58]}  Nc6 {[%clk 0:02:42]} 6. Re1 {[%clk 0:02:58]}  Be7 {[%clk 0:02:42]} 7. Nxe5 {[%clk 0:02:55]}  O-O {[%clk 0:02:42]} 8. d4 {[%clk 0:02:54]}  Nf5 {[%clk 0:02:26]} 9. c3 {[%clk 0:02:51]}  Nxe5 {[%clk 0:02:19]} 10. dxe5 {[%clk 0:02:48]}  d6 {[%clk 0:02:17]} 11. exd6 {[%clk 0:02:44]}  Bxd6 {[%clk 0:02:12]} 12. h3 {[%clk 0:02:43]}  Bd7 {[%clk 0:02:06]} 13. Bc2 {[%clk 0:02:42]}  Re8 {[%clk 0:02:01]} 14. Rxe8+ {[%clk 0:02:38]}  Qxe8 {[%clk 0:02:02]} 15. Nd2 {[%clk 0:02:37]}  g6 {[%clk 0:01:53]} 16. Ne4 {[%clk 0:02:34]}  Be7 {[%clk 0:01:47]} 17. Bf4 {[%clk 0:02:26]}  c6 {[%clk 0:01:32]} 18. Qd2 {[%clk 0:02:16]}  Rd8 {[%clk 0:01:28]} 19. Re1 {[%clk 0:02:06]}  Be6 {[%clk 0:01:25]} 20. Qc1 {[%clk 0:02:06]}  Qd7 {[%clk 0:01:13]} 21. Bg5 {[%clk 0:02:03]}  Bxg5 {[%clk 0:00:51]} 22. Qxg5 {[%clk 0:02:01]}  Qe7 {[%clk 0:00:50]} 23. Qf4 {[%clk 0:00:53]}  Bd5 {[%clk 0:00:33]} 24. g4 {[%clk 0:00:48]}  Qh4 {[%clk 0:00:20]} 25. Qc7 {[%clk 0:00:27]}  Bxe4 {[%clk 0:00:16]} 26. Bxe4 {[%clk 0:00:24]}  Nd6 {[%clk 0:00:13]} 27. Bg2 {[%clk 0:00:24]}  Nc4 {[%clk 0:00:09]} 28. Qxb7 {[%clk 0:00:22]}  Nd2 {[%clk 0:00:06]} 29. Qxc6 {[%clk 0:00:20]}  Kg7 {[%clk 0:00:04]} 30. Qc5 {[%clk 0:00:18]}  Qf6 {[%clk 0:00:03]} 31. Qxa7 {[%clk 0:00:16]}  Rd6 {[%clk 0:00:03]} 32. Qc5 {[%clk 0:00:13]}  Nf3+ {[%clk 0:00:02]} 33. Bxf3 {[%clk 0:00:13]}  Qxf3 {[%clk 0:00:02]} 34. Qxd6 {[%clk 0:00:12]}  Qxh3 {[%clk 0:00:02]} 35. Qe5+ {[%clk 0:00:12]}  Kg8 {[%clk 0:00:02]} 36. Qg3 {[%clk 0:00:11]} 1-0


[Site "https://www.chess.com"]

[Event "Titled Tuesday Blitz January 10 Early 2023"]
[White "Nugumanov, Bakhtiyar"]
[Black "Borgaonkar Akshay"]
[WhiteFideId "13701797"]
[BlackFideId "25639110"]
[WhiteElo "2316"]
[BlackElo "1991"]
[Result "0-1"]
[Round "04"]
[TimeControl "180+2"]
[Date "2023.01.10"]
[WhiteClock "0:00:02"]
[BlackClock "0:00:48"]

1. Nf3 {[%clk 0:03:00]}  Nf6 {[%clk 0:02:57]} 2. c4 {[%clk 0:03:00]}  g6 {[%clk 0:02:57]} 3. Nc3 {[%clk 0:03:00]}  Bg7 {[%clk 0:02:58]} 4. g3 {[%clk 0:03:00]}  O-O {[%clk 0:02:57]} 5. Bg2 {[%clk 0:03:01]}  c5 {[%clk 0:02:57]} 6. O-O {[%clk 0:03:01]}  Nc6 {[%clk 0:02:57]} 7. d4 {[%clk 0:03:01]}  d5 {[%clk 0:02:56]} 8. dxc5 {[%clk 0:02:16]}  dxc4 {[%clk 0:02:44]} 9. Qa4 {[%clk 0:02:15]}  Nd5 {[%clk 0:02:36]} 10. Qxc4 {[%clk 0:02:09]}  Nxc3 {[%clk 0:02:36]} 11. bxc3 {[%clk 0:02:10]}  Be6 {[%clk 0:02:36]} 12. Qb5 {[%clk 0:01:59]}  Bxc3 {[%clk 0:02:36]} 13. Bb2 {[%clk 0:01:58]}  Bxb2 {[%clk 0:01:55]} 14. Qxb2 {[%clk 0:01:58]}  Qc7 {[%clk 0:01:55]} 15. Rfd1 {[%clk 0:01:54]}  Rfd8 {[%clk 0:01:53]} 16. Rac1 {[%clk 0:01:55]}  Rxd1+ {[%clk 0:01:50]} 17. Rxd1 {[%clk 0:01:54]}  Rd8 {[%clk 0:01:50]} 18. Rb1 {[%clk 0:01:39]}  Bf5 {[%clk 0:01:45]} 19. Qxb7 {[%clk 0:01:35]}  Qxb7 {[%clk 0:01:28]} 20. Rxb7 {[%clk 0:01:34]}  Rd1+ {[%clk 0:01:28]} 21. Bf1 {[%clk 0:01:21]}  Nd4 {[%clk 0:01:27]} 22. Kg2 {[%clk 0:01:01]}  Be4 {[%clk 0:01:25]} 23. Rb8+ {[%clk 0:00:39]}  Kg7 {[%clk 0:01:24]} 24. Rd8 {[%clk 0:00:32]}  e5 {[%clk 0:01:11]} 25. Rd7 {[%clk 0:00:24]}  Rc1 {[%clk 0:01:00]} 26. Rxa7 {[%clk 0:00:17]}  Rxc5 {[%clk 0:01:00]} 27. a4 {[%clk 0:00:09]}  Rc2 {[%clk 0:00:57]} 28. a5 {[%clk 0:00:09]}  Nxe2 {[%clk 0:00:56]} 29. Bxe2 {[%clk 0:00:10]}  Rxe2 {[%clk 0:00:56]} 30. a6 {[%clk 0:00:10]}  Ra2 {[%clk 0:00:56]} 31. Rc7 {[%clk 0:00:03]}  Ra3 {[%clk 0:00:54]} 32. a7 {[%clk 0:00:03]}  Bxf3+ {[%clk 0:00:53]} 33. Kh3 {[%clk 0:00:02]}  Ra5 {[%clk 0:00:48]} 0-1


[Site "https://www.chess.com"]

[Event "Titled Tuesday Blitz January 10 Early 2023"]
[White "Andreev, Eduard"]
[Black "Doluhanova, Evgeniya"]
[WhiteFideId "14103400"]
[BlackFideId "14112035"]
[WhiteElo "2413"]
[BlackElo "2275"]
[Result "1-0"]
[Round "04"]
[TimeControl "180+2"]
[Date "2023.01.10"]
[WhiteClock "0:00:27"]
[BlackClock "0:00:10"]

1. e4 {[%clk 0:03:00]}  e5 {[%clk 0:02:59]} 2. Nf3 {[%clk 0:03:00]}  Nc6 {[%clk 0:02:59]} 3. d4 {[%clk 0:03:00]}  exd4 {[%clk 0:02:59]} 4. Nxd4 {[%clk 0:03:01]}  Bc5 {[%clk 0:02:57]} 5. Nb3 {[%clk 0:03:01]}  Bb6 {[%clk 0:02:57]} 6. Qe2 {[%clk 0:03:01]}  d6 {[%clk 0:02:54]} 7. Nc3 {[%clk 0:03:01]}  Nf6 {[%clk 0:02:54]} 8. Be3 {[%clk 0:02:59]}  Be6 {[%clk 0:02:53]} 9. O-O-O {[%clk 0:02:56]}  Qe7 {[%clk 0:02:53]} 10. Nd5 {[%clk 0:02:14]}  Bxd5 {[%clk 0:02:48]} 11. exd5 {[%clk 0:02:15]}  Bxe3+ {[%clk 0:02:38]} 12. fxe3 {[%clk 0:02:16]}  Ne5 {[%clk 0:02:38]} 13. Qb5+ {[%clk 0:02:12]}  Ned7 {[%clk 0:02:36]} 14. Qxb7 {[%clk 0:02:09]}  Qxe3+ {[%clk 0:02:32]} 15. Kb1 {[%clk 0:02:09]}  O-O {[%clk 0:02:28]} 16. Qxc7 {[%clk 0:02:06]}  a5 {[%clk 0:02:23]} 17. a4 {[%clk 0:01:45]}  Rfc8 {[%clk 0:01:51]} 18. Qxd6 {[%clk 0:01:40]}  Rxc2 {[%clk 0:01:24]} 19. Kxc2 {[%clk 0:01:15]}  Rc8+ {[%clk 0:01:21]} 20. Kb1 {[%clk 0:01:15]}  Qxb3 {[%clk 0:01:21]} 21. Bb5 {[%clk 0:01:14]}  Nc5 {[%clk 0:01:05]} 22. Qg3 {[%clk 0:00:53]}  Qb4 {[%clk 0:00:56]} 23. Qc3 {[%clk 0:00:50]}  Qe4+ {[%clk 0:00:48]} 24. Qc2 {[%clk 0:00:45]}  Qg4 {[%clk 0:00:34]} 25. h3 {[%clk 0:00:43]}  Qb4 {[%clk 0:00:26]} 26. Qd2 {[%clk 0:00:39]}  Qe4+ {[%clk 0:00:22]} 27. Qc2 {[%clk 0:00:35]}  Qb4 {[%clk 0:00:20]} 28. Rhe1 {[%clk 0:00:35]}  g6 {[%clk 0:00:17]} 29. Qc3 {[%clk 0:00:33]}  Qf4 {[%clk 0:00:11]} 30. Rf1 {[%clk 0:00:28]}  Qe4+ {[%clk 0:00:11]} 31. Bd3 {[%clk 0:00:28]}  Nxd3 {[%clk 0:00:09]} 32. Qxc8+ {[%clk 0:00:27]}  Kg7 {[%clk 0:00:10]} 33. Qc2 {[%clk 0:00:27]} 1-0


[Site "https://www.chess.com"]

[Event "Titled Tuesday Blitz January 10 Early 2023"]
[White "Jimenez, Joaquin"]
[Black "Berezin, Viktor"]
[WhiteFideId "109860"]
[BlackFideId "14107872"]
[WhiteElo "2195"]
[BlackElo "2307"]
[Result "1-0"]
[Round "04"]
[TimeControl "180+2"]
[Date "2023.01.10"]
[WhiteClock "0:00:54"]
[BlackClock "0:00:03"]

1. e4 {[%clk 0:03:00]}  g6 {[%clk 0:02:58]} 2. d4 {[%clk 0:02:58]}  Bg7 {[%clk 0:02:57]} 3. Nc3 {[%clk 0:02:58]}  d6 {[%clk 0:02:57]} 4. Be3 {[%clk 0:02:58]}  Nf6 {[%clk 0:02:57]} 5. f3 {[%clk 0:02:57]}  O-O {[%clk 0:02:57]} 6. Qd2 {[%clk 0:02:57]}  c6 {[%clk 0:02:57]} 7. h4 {[%clk 0:02:57]}  h5 {[%clk 0:02:57]} 8. O-O-O {[%clk 0:02:57]}  b5 {[%clk 0:02:56]} 9. Nh3 {[%clk 0:02:56]}  Qa5 {[%clk 0:02:54]} 10. Kb1 {[%clk 0:02:54]}  b4 {[%clk 0:02:55]} 11. Ne2 {[%clk 0:02:54]}  Nbd7 {[%clk 0:02:54]} 12. Bh6 {[%clk 0:02:54]}  e5 {[%clk 0:02:54]} 13. Bxg7 {[%clk 0:02:53]}  Kxg7 {[%clk 0:02:54]} 14. Ng5 {[%clk 0:02:53]}  c5 {[%clk 0:02:43]} 15. d5 {[%clk 0:02:52]}  Nb6 {[%clk 0:02:34]} 16. Nc1 {[%clk 0:02:47]}  c4 {[%clk 0:02:32]} 17. Qe3 {[%clk 0:02:40]}  Bd7 {[%clk 0:02:24]} 18. Be2 {[%clk 0:02:36]}  c3 {[%clk 0:02:21]} 19. Nb3 {[%clk 0:02:35]}  Qa4 {[%clk 0:02:21]} 20. Rdg1 {[%clk 0:02:30]}  cxb2 {[%clk 0:02:21]} 21. g4 {[%clk 0:02:26]}  Rac8 {[%clk 0:02:06]} 22. gxh5 {[%clk 0:02:26]}  Nxh5 {[%clk 0:02:05]} 23. Bd3 {[%clk 0:02:13]}  Nc4 {[%clk 0:01:55]} 24. Bxc4 {[%clk 0:02:01]}  Rxc4 {[%clk 0:01:56]} 25. Nxf7 {[%clk 0:01:58]}  Kxf7 {[%clk 0:01:25]} 26. Rxg6 {[%clk 0:01:49]}  Nf4 {[%clk 0:01:25]} 27. Rxd6 {[%clk 0:01:44]}  Rfc8 {[%clk 0:01:16]} 28. Rh2 {[%clk 0:01:41]}  Rxc2 {[%clk 0:00:55]} 29. Rxd7+ {[%clk 0:01:28]}  Ke8 {[%clk 0:00:34]} 30. Rxc2 {[%clk 0:01:27]}  Rxc2 {[%clk 0:00:32]} 31. Rxa7 {[%clk 0:01:20]}  Qb5 {[%clk 0:00:08]} 32. Kxc2 {[%clk 0:01:16]}  Qc4+ {[%clk 0:00:08]} 33. Kxb2 {[%clk 0:01:14]}  Nd3+ {[%clk 0:00:09]} 34. Kb1 {[%clk 0:01:11]}  Qc3 {[%clk 0:00:08]} 35. Qd2 {[%clk 0:01:04]}  Qc4 {[%clk 0:00:06]} 36. Ra8+ {[%clk 0:01:01]}  Kf7 {[%clk 0:00:06]} 37. Ra7+ {[%clk 0:01:00]}  Ke8 {[%clk 0:00:06]} 38. Rb7 {[%clk 0:00:56]}  Kd8 {[%clk 0:00:03]} 39. d6 {[%clk 0:00:54]}  Kc8 {[%clk 0:00:03]} 40. Rc7+ {[%clk 0:00:54]} 1-0


[Site "https://www.chess.com"]

[Event "Titled Tuesday Blitz January 10 Early 2023"]
[White "Vasques, Antonio Pedro Freixial"]
[Black "Mika, Tomasz"]
[WhiteFideId "1908332"]
[BlackFideId "1132970"]
[WhiteElo "2214"]
[BlackElo "2169"]
[Result "1-0"]
[Round "04"]
[TimeControl "180+2"]
[Date "2023.01.10"]
[WhiteClock "0:02:01"]
[BlackClock "0:01:24"]

1. e4 {[%clk 0:02:46]}  c6 {[%clk 0:02:59]} 2. d4 {[%clk 0:02:45]}  d5 {[%clk 0:03:00]} 3. Nc3 {[%clk 0:02:45]}  dxe4 {[%clk 0:03:00]} 4. Nxe4 {[%clk 0:02:46]}  Bf5 {[%clk 0:03:00]} 5. Ng3 {[%clk 0:02:46]}  Bg6 {[%clk 0:03:01]} 6. Nf3 {[%clk 0:02:47]}  Nd7 {[%clk 0:03:00]} 7. h4 {[%clk 0:02:48]}  h6 {[%clk 0:03:00]} 8. h5 {[%clk 0:02:49]}  Bh7 {[%clk 0:03:00]} 9. Bd3 {[%clk 0:02:50]}  Bxd3 {[%clk 0:03:01]} 10. Qxd3 {[%clk 0:02:50]}  Ngf6 {[%clk 0:03:01]} 11. Bf4 {[%clk 0:02:51]}  Qa5+ {[%clk 0:02:52]} 12. Bd2 {[%clk 0:02:49]}  Qc7 {[%clk 0:02:52]} 13. O-O-O {[%clk 0:02:50]}  e6 {[%clk 0:02:52]} 14. Kb1 {[%clk 0:02:50]}  Be7 {[%clk 0:02:52]} 15. Ne4 {[%clk 0:02:49]}  O-O {[%clk 0:02:51]} 16. Nxf6+ {[%clk 0:02:45]}  Nxf6 {[%clk 0:02:51]} 17. g4 {[%clk 0:02:45]}  Nxg4 {[%clk 0:02:47]} 18. Qe2 {[%clk 0:02:42]}  Kh8 {[%clk 0:02:16]} 19. Rhg1 {[%clk 0:02:41]}  Nf6 {[%clk 0:02:16]} 20. Ne5 {[%clk 0:02:41]}  Rad8 {[%clk 0:02:06]} 21. Qe3 {[%clk 0:02:34]}  c5 {[%clk 0:01:24]} 22. Rxg7 {[%clk 0:02:01]} 1-0


[Site "https://www.chess.com"]

[Event "Titled Tuesday Blitz January 10 Early 2023"]
[White "Gaitan, Juan Manuel"]
[Black "Zanette, Edgard Vinicius"]
[WhiteFideId "121657"]
[BlackFideId "2109263"]
[WhiteElo "2328"]
[BlackElo "2085"]
[Result "1-0"]
[Round "04"]
[TimeControl "180+2"]
[Date "2023.01.10"]
[WhiteClock "0:00:57"]
[BlackClock "0:00:02"]

1. d4 {[%clk 0:03:00]}  Nf6 {[%clk 0:02:59]} 2. c4 {[%clk 0:03:00]}  e6 {[%clk 0:02:59]} 3. Nf3 {[%clk 0:03:00]}  b6 {[%clk 0:02:59]} 4. g3 {[%clk 0:03:00]}  Bb7 {[%clk 0:02:59]} 5. Bg2 {[%clk 0:03:00]}  Be7 {[%clk 0:02:57]} 6. O-O {[%clk 0:03:00]}  O-O {[%clk 0:02:58]} 7. Nc3 {[%clk 0:02:59]}  Ne4 {[%clk 0:02:54]} 8. Bd2 {[%clk 0:02:56]}  Nxc3 {[%clk 0:02:52]} 9. Bxc3 {[%clk 0:02:56]}  d6 {[%clk 0:02:52]} 10. d5 {[%clk 0:02:54]}  e5 {[%clk 0:02:49]} 11. e4 {[%clk 0:02:50]}  a5 {[%clk 0:02:47]} 12. b3 {[%clk 0:02:48]}  Nd7 {[%clk 0:02:44]} 13. Re1 {[%clk 0:02:44]}  g6 {[%clk 0:02:36]} 14. a3 {[%clk 0:02:28]}  Bf6 {[%clk 0:02:29]} 15. b4 {[%clk 0:02:27]}  axb4 {[%clk 0:02:28]} 16. axb4 {[%clk 0:02:28]}  Qe7 {[%clk 0:02:18]} 17. Qc2 {[%clk 0:02:22]}  Bg7 {[%clk 0:02:14]} 18. Bh3 {[%clk 0:02:16]}  Nf6 {[%clk 0:02:09]} 19. Bd2 {[%clk 0:02:06]}  Rxa1 {[%clk 0:02:01]} 20. Rxa1 {[%clk 0:02:07]}  Ra8 {[%clk 0:01:58]} 21. Rxa8+ {[%clk 0:02:07]}  Bxa8 {[%clk 0:01:58]} 22. Be3 {[%clk 0:02:08]}  Bb7 {[%clk 0:01:45]} 23. c5 {[%clk 0:02:04]}  bxc5 {[%clk 0:01:31]} 24. bxc5 {[%clk 0:02:05]}  Qd8 {[%clk 0:00:48]} 25. Qb3 {[%clk 0:01:43]}  Ba6 {[%clk 0:00:43]} 26. Nd2 {[%clk 0:01:38]}  dxc5 {[%clk 0:00:30]} 27. Bxc5 {[%clk 0:01:39]}  Nd7 {[%clk 0:00:26]} 28. Be3 {[%clk 0:01:32]}  Bf8 {[%clk 0:00:24]} 29. Qa4 {[%clk 0:01:32]}  Bc8 {[%clk 0:00:20]} 30. Qa8 {[%clk 0:01:32]}  Be7 {[%clk 0:00:19]} 31. Nc4 {[%clk 0:01:30]}  Nb6 {[%clk 0:00:15]} 32. Bxb6 {[%clk 0:01:15]}  Bxh3 {[%clk 0:00:14]} 33. Qxd8+ {[%clk 0:01:14]}  Bxd8 {[%clk 0:00:14]} 34. Ba5 {[%clk 0:01:15]}  f6 {[%clk 0:00:14]} 35. d6 {[%clk 0:01:14]}  cxd6 {[%clk 0:00:08]} 36. Bxd8 {[%clk 0:01:13]}  Kf7 {[%clk 0:00:08]} 37. Ne3 {[%clk 0:01:10]}  Be6 {[%clk 0:00:06]} 38. Kf1 {[%clk 0:01:05]}  f5 {[%clk 0:00:05]} 39. f3 {[%clk 0:01:00]}  fxe4 {[%clk 0:00:03]} 40. fxe4 {[%clk 0:01:01]}  Ke8 {[%clk 0:00:03]} 41. Bg5 {[%clk 0:01:00]}  Kd7 {[%clk 0:00:03]} 42. Ke2 {[%clk 0:00:59]}  Bh3 {[%clk 0:00:03]} 43. g4 {[%clk 0:00:57]}  h5 {[%clk 0:00:02]} 44. Kf2 {[%clk 0:00:57]} 1-0


[Site "https://www.chess.com"]

[Event "Titled Tuesday Blitz January 10 Early 2023"]
[White "Barbashin, Igor"]
[Black "Begunov, Konstantin"]
[WhiteFideId "4155718"]
[BlackFideId "4118510"]
[WhiteElo "2169"]
[BlackElo "2325"]
[Result "0-1"]
[Round "04"]
[TimeControl "180+2"]
[Date "2023.01.10"]
[WhiteClock "0:00:01"]
[BlackClock "0:00:48"]

1. d4 {[%clk 0:03:00]}  d5 {[%clk 0:02:59]} 2. c4 {[%clk 0:02:59]}  c6 {[%clk 0:03:00]} 3. Nc3 {[%clk 0:02:58]}  Nf6 {[%clk 0:03:01]} 4. Nf3 {[%clk 0:02:58]}  dxc4 {[%clk 0:03:01]} 5. a4 {[%clk 0:02:57]}  Bg4 {[%clk 0:03:02]} 6. Ne5 {[%clk 0:02:52]}  Bh5 {[%clk 0:03:02]} 7. Nxc4 {[%clk 0:02:47]}  e6 {[%clk 0:03:01]} 8. f3 {[%clk 0:02:41]}  c5 {[%clk 0:03:02]} 9. Be3 {[%clk 0:02:23]}  Nd5 {[%clk 0:03:00]} 10. Bf2 {[%clk 0:02:11]}  cxd4 {[%clk 0:02:58]} 11. Qxd4 {[%clk 0:02:08]}  Nc6 {[%clk 0:02:57]} 12. Qd2 {[%clk 0:02:01]}  Nxc3 {[%clk 0:02:51]} 13. Qxd8+ {[%clk 0:01:47]}  Rxd8 {[%clk 0:02:50]} 14. bxc3 {[%clk 0:01:48]}  f6 {[%clk 0:02:27]} 15. e4 {[%clk 0:01:47]}  e5 {[%clk 0:02:20]} 16. a5 {[%clk 0:01:33]}  Bf7 {[%clk 0:02:17]} 17. a6 {[%clk 0:01:32]}  b6 {[%clk 0:02:11]} 18. Nxb6 {[%clk 0:01:11]}  axb6 {[%clk 0:02:07]} 19. Bb5 {[%clk 0:01:11]}  Kd7 {[%clk 0:01:51]} 20. Bxb6 {[%clk 0:00:59]}  Bd6 {[%clk 0:01:14]} 21. a7 {[%clk 0:00:31]}  Rc8 {[%clk 0:00:55]} 22. Ke2 {[%clk 0:00:19]}  Ke7 {[%clk 0:00:48]} 23. Bxc6 {[%clk 0:00:13]}  Rxc6 {[%clk 0:00:48]} 24. a8=Q {[%clk 0:00:11]}  Rxa8 {[%clk 0:00:48]} 25. Rxa8 {[%clk 0:00:10]}  Rxb6 {[%clk 0:00:48]} 26. Ra7+ {[%clk 0:00:01]}  Ke6 {[%clk 0:00:48]} 0-1


[Site "https://www.chess.com"]

[Event "Titled Tuesday Blitz January 10 Early 2023"]
[White "Novikov, Evgenij"]
[Black "Riverol, Jose"]
[WhiteFideId "4125380"]
[BlackFideId "3000427"]
[WhiteElo "2276"]
[BlackElo "2304"]
[Result "1/2-1/2"]
[Round "04"]
[TimeControl "180+2"]
[Date "2023.01.10"]
[WhiteClock "0:00:53"]
[BlackClock "0:01:24"]

1. e4 {[%clk 0:03:00]}  c5 {[%clk 0:02:59]} 2. Nf3 {[%clk 0:02:54]}  Nc6 {[%clk 0:02:59]} 3. Bb5 {[%clk 0:02:52]}  Na5 {[%clk 0:02:59]} 4. O-O {[%clk 0:02:47]}  a6 {[%clk 0:02:59]} 5. Be2 {[%clk 0:02:46]}  d6 {[%clk 0:03:00]} 6. b3 {[%clk 0:02:44]}  Nf6 {[%clk 0:03:00]} 7. Nc3 {[%clk 0:02:38]}  e6 {[%clk 0:03:00]} 8. Bb2 {[%clk 0:02:39]}  Be7 {[%clk 0:03:00]} 9. d4 {[%clk 0:02:39]}  cxd4 {[%clk 0:03:00]} 10. Qxd4 {[%clk 0:02:32]}  Nc6 {[%clk 0:02:59]} 11. Qd2 {[%clk 0:02:31]}  b5 {[%clk 0:02:59]} 12. a3 {[%clk 0:02:22]}  O-O {[%clk 0:02:57]} 13. Rad1 {[%clk 0:02:20]}  Qc7 {[%clk 0:02:57]} 14. Bd3 {[%clk 0:02:07]}  Bb7 {[%clk 0:02:56]} 15. Ne2 {[%clk 0:02:05]}  Rfd8 {[%clk 0:02:53]} 16. Ng3 {[%clk 0:02:01]}  Rac8 {[%clk 0:02:48]} 17. Rfe1 {[%clk 0:01:59]}  Ne5 {[%clk 0:02:48]} 18. Nxe5 {[%clk 0:01:54]}  dxe5 {[%clk 0:02:49]} 19. Qe2 {[%clk 0:01:19]}  Rd7 {[%clk 0:02:34]} 20. h4 {[%clk 0:01:17]}  Rcd8 {[%clk 0:02:33]} 21. h5 {[%clk 0:01:17]}  h6 {[%clk 0:02:33]} 22. Qf3 {[%clk 0:01:13]}  Bc6 {[%clk 0:02:02]} 23. Qe2 {[%clk 0:01:09]}  Nh7 {[%clk 0:01:48]} 24. Nf1 {[%clk 0:01:06]}  Nf6 {[%clk 0:01:46]} 25. Nh2 {[%clk 0:01:02]}  Bc5 {[%clk 0:01:33]} 26. Ra1 {[%clk 0:00:54]}  Bd4 {[%clk 0:01:31]} 27. Bxd4 {[%clk 0:00:53]}  Rxd4 {[%clk 0:01:24]} 1/2-1/2


[Site "https://www.chess.com"]

[Event "Titled Tuesday Blitz January 10 Early 2023"]
[White "Della Corte, Alessandro"]
[Black "Marin Ramirez, Gerardo"]
[WhiteFideId "813540"]
[BlackFideId "3901068"]
[WhiteElo "2160"]
[BlackElo "2127"]
[Result "1-0"]
[Round "04"]
[TimeControl "180+2"]
[Date "2023.01.10"]
[WhiteClock "0:01:50"]
[BlackClock "0:00:22"]

1. d4 {[%clk 0:02:54]}  d5 {[%clk 0:02:58]} 2. Nf3 {[%clk 0:02:53]}  Nf6 {[%clk 0:02:56]} 3. c4 {[%clk 0:02:54]}  c6 {[%clk 0:02:56]} 4. cxd5 {[%clk 0:02:53]}  cxd5 {[%clk 0:02:55]} 5. Nc3 {[%clk 0:02:54]}  Qb6 {[%clk 0:02:50]} 6. e3 {[%clk 0:02:47]}  a6 {[%clk 0:02:48]} 7. Bd3 {[%clk 0:02:47]}  Bg4 {[%clk 0:02:47]} 8. O-O {[%clk 0:02:47]}  e6 {[%clk 0:02:47]} 9. Qc2 {[%clk 0:02:46]}  Nbd7 {[%clk 0:02:43]} 10. Ne5 {[%clk 0:02:45]}  Nxe5 {[%clk 0:02:42]} 11. dxe5 {[%clk 0:02:46]}  Nd7 {[%clk 0:02:42]} 12. e4 {[%clk 0:02:45]}  d4 {[%clk 0:02:09]} 13. Ne2 {[%clk 0:02:38]}  Bxe2 {[%clk 0:02:03]} 14. Bxe2 {[%clk 0:02:38]}  Nxe5 {[%clk 0:02:02]} 15. Bf4 {[%clk 0:02:37]}  Nc6 {[%clk 0:02:01]} 16. Rac1 {[%clk 0:02:31]}  Be7 {[%clk 0:01:59]} 17. e5 {[%clk 0:02:30]}  O-O {[%clk 0:01:54]} 18. Bd3 {[%clk 0:02:31]}  g6 {[%clk 0:01:47]} 19. Qe2 {[%clk 0:02:31]}  Rfd8 {[%clk 0:01:42]} 20. g3 {[%clk 0:02:28]}  Rac8 {[%clk 0:01:42]} 21. h4 {[%clk 0:02:28]}  Bf8 {[%clk 0:01:40]} 22. Bg5 {[%clk 0:02:28]}  Rd7 {[%clk 0:01:29]} 23. Bf6 {[%clk 0:02:28]}  Bg7 {[%clk 0:01:28]} 24. h5 {[%clk 0:02:28]}  Qa5 {[%clk 0:01:21]} 25. a3 {[%clk 0:02:25]}  Rdc7 {[%clk 0:01:16]} 26. Rcd1 {[%clk 0:02:05]}  Nxe5 {[%clk 0:01:11]} 27. Bxg7 {[%clk 0:02:01]}  Kxg7 {[%clk 0:01:10]} 28. b4 {[%clk 0:01:59]}  Qd5 {[%clk 0:01:06]} 29. Be4 {[%clk 0:02:00]}  Qd6 {[%clk 0:01:06]} 30. Qd2 {[%clk 0:01:57]}  gxh5 {[%clk 0:00:55]} 31. Qxd4 {[%clk 0:01:54]}  Qxd4 {[%clk 0:00:53]} 32. Rxd4 {[%clk 0:01:55]}  f5 {[%clk 0:00:27]} 33. Bg2 {[%clk 0:01:52]}  Kf6 {[%clk 0:00:27]} 34. Re1 {[%clk 0:01:51]}  Re7 {[%clk 0:00:22]} 35. Rd6 {[%clk 0:01:50]} 1-0


[Site "https://www.chess.com"]

[Event "Titled Tuesday Blitz January 10 Early 2023"]
[White "Sailer, Mike"]
[Black "Tymrakiewicz, Rafal"]
[WhiteFideId "2012901"]
[BlackFideId "1108832"]
[WhiteElo "2109"]
[BlackElo "2144"]
[Result "0-1"]
[Round "04"]
[TimeControl "180+2"]
[Date "2023.01.10"]
[WhiteClock "0:00:28"]
[BlackClock "0:00:34"]

1. d4 {[%clk 0:03:00]}  e6 {[%clk 0:02:57]} 2. Bf4 {[%clk 0:03:00]}  c5 {[%clk 0:02:56]} 3. e3 {[%clk 0:03:01]}  Qb6 {[%clk 0:02:55]} 4. Nc3 {[%clk 0:03:01]}  Nf6 {[%clk 0:02:50]} 5. Rb1 {[%clk 0:02:58]}  a6 {[%clk 0:02:48]} 6. Nf3 {[%clk 0:02:58]}  Nc6 {[%clk 0:02:46]} 7. Be2 {[%clk 0:02:55]}  Be7 {[%clk 0:02:45]} 8. O-O {[%clk 0:02:55]}  O-O {[%clk 0:02:46]} 9. Na4 {[%clk 0:02:52]}  Qa5 {[%clk 0:02:43]} 10. Nxc5 {[%clk 0:02:49]}  b6 {[%clk 0:02:20]} 11. Nb3 {[%clk 0:02:45]}  Qxa2 {[%clk 0:02:02]} 12. Qc1 {[%clk 0:02:20]}  Na5 {[%clk 0:01:55]} 13. Nfd2 {[%clk 0:02:04]}  Nxb3 {[%clk 0:01:40]} 14. Nxb3 {[%clk 0:02:02]}  Qa4 {[%clk 0:01:40]} 15. Bf3 {[%clk 0:01:35]}  d5 {[%clk 0:01:39]} 16. Nd2 {[%clk 0:01:19]}  Bb7 {[%clk 0:01:22]} 17. c3 {[%clk 0:01:09]}  Rfc8 {[%clk 0:01:19]} 18. Bd1 {[%clk 0:00:53]}  Qd7 {[%clk 0:01:16]} 19. Bc2 {[%clk 0:00:53]}  b5 {[%clk 0:01:14]} 20. Nf3 {[%clk 0:00:49]}  b4 {[%clk 0:01:08]} 21. Ne5 {[%clk 0:00:50]}  Qe8 {[%clk 0:01:08]} 22. Bd3 {[%clk 0:00:43]}  g6 {[%clk 0:01:07]} 23. Qd2 {[%clk 0:00:37]}  a5 {[%clk 0:01:05]} 24. Rfc1 {[%clk 0:00:37]}  Nd7 {[%clk 0:01:05]} 25. Qe2 {[%clk 0:00:34]}  Nxe5 {[%clk 0:01:04]} 26. Bxe5 {[%clk 0:00:34]}  bxc3 {[%clk 0:01:02]} 27. bxc3 {[%clk 0:00:34]}  Bc6 {[%clk 0:00:58]} 28. c4 {[%clk 0:00:33]}  dxc4 {[%clk 0:00:53]} 29. Bxc4 {[%clk 0:00:33]}  a4 {[%clk 0:00:48]} 30. Bb5 {[%clk 0:00:30]}  Bxb5 {[%clk 0:00:45]} 31. Rxc8 {[%clk 0:00:28]}  Bxe2 {[%clk 0:00:34]} 32. Rxe8+ {[%clk 0:00:28]}  Rxe8 {[%clk 0:00:34]} 0-1


[Site "https://www.chess.com"]